fUSD/lending_fUSD_20251117
["ID","MTS","AMOUNT","RATE_DAILY","PERIOD"]
[394193420,1763369240145,1773.17400338,0.00017999,2]
[394193421,1763369240169,226.82599662,0.00017999,2]
[394193422,1763369240223,500.0,0.00017999,2]
[394193423,1763369240280,500.0,0.00017999,2]
[394193424,1763369240573,500.0,0.00017999,2]
[394193425,1763369240651,500.0,0.00017999,2]
[394193426,1763369240683,2000.0,0.00017999,2]
[394193427,1763369241140,500.0,0.00017999,2]
[394193428,1763369241292,407.14050674,0.00017999,2]
[394193429,1763369241342,2000.0,0.00017999,2]
[394193430,1763369241825,500.0,0.00017999,2]
[394193431,1763369242698,500.0,0.00017999,2]
[394193432,1763369243178,500.0,0.00017999,2]
[394193433,1763369243229,250.0,0.00017999,2]
[394193434,1763369243775,500.0,0.00017999,2]
[394193435,1763369244135,500.0,0.00017999,2]
[394193436,1763369244223,116.04349664,0.00017999,2]
[394193437,1763369244247,133.95650336,0.00017999,2]
[394193438,1763369244537,500.0,0.00017999,2]
[394193439,1763369244966,500.0,0.00017999,2]
[394193440,1763369244996,250.0,0.00017999,2]
[394193441,1763369246036,500.0,0.00017999,2]
[394193442,1763369246190,250.0,0.00017999,2]
[394193443,1763369246310,500.0,0.00017999,2]
[394193444,1763369246433,500.0,0.00017999,2]
[394193445,1763369246558,250.0,0.00017999,2]
[394193446,1763369246617,500.0,0.00017999,2]
[394193447,1763369246700,500.0,0.00017999,2]
[394193448,1763369246878,250.0,0.00017999,2]
[394193449,1763369247117,522.30183219,0.00017999,2]
[394193450,1763369247231,500.0,0.00017999,2]
[394193451,1763369247485,250.0,0.00017999,2]
[394193452,1763369247873,500.0,0.00017999,2]
[394193453,1763369247909,277.35679052,0.00017999,2]
[394193454,1763369248102,250.0,0.00017999,2]
[394193455,1763369248714,250.0,0.00017999,2]
[394193456,1763369249649,250.0,0.00017999,2]
[394193457,1763369249992,283.21448198,0.00017999,2]
[394193458,1763369251610,250.0,0.00017999,2]
[394193459,1763369252270,250.0,0.00017999,2]
[394193460,1763369252904,250.0,0.00017999,2]
[394193461,1763369253791,250.0,0.00017999,2]
[394193462,1763369254109,250.0,0.00017999,2]
[394193463,1763369254770,250.0,0.00017999,2]
[394193464,1763369255412,250.0,0.00017999,2]
[394193465,1763369256387,250.0,0.00017999,2]
[394193466,1763369256656,250.0,0.00017999,2]
[394193467,1763369257313,33.18039195,0.00017999,2]
[394193468,1763369257336,216.81960805,0.00017999,2]
[394193469,1763369258064,250.0,0.00017999,2]
[394193470,1763369273221,245.96501431,0.00017999,2]
[394193471,1763369319807,4784.08830427,0.000179,2]
[394193474,1763369395582,2000.0,0.00017989,2]
[394193475,1763369396232,2000.0,0.00017989,2]
[394193476,1763369396885,503.13707337,0.00017989,2]
[394193477,1763369396909,1496.86292663,0.00017989,2]
[394193478,1763369397573,2000.0,0.00017989,2]
[394193479,1763369398124,2000.0,0.00017989,2]
[394193480,1763369398742,2000.0,0.00017989,2]
[394193481,1763369399672,2000.0,0.00017989,2]
[394193482,1763369400250,503.14707337,0.00017989,2]
[394193483,1763369400274,1496.85292663,0.00017989,2]
[394193484,1763369400855,2000.0,0.00017989,2]
[394193485,1763369401489,1233.5570464,0.00017989,2]
[394193519,1763369431543,-218.77157508,0.00017999,2]
[394193520,1763369431554,-500.0,0.00017999,2]
[394193521,1763369431564,-500.0,0.00017999,2]
[394193522,1763369431573,-582.54403578,0.00017999,2]
[394193523,1763369431583,-500.0,0.00017999,2]
[394193524,1763369431594,-500.0,0.00017999,2]
[394193525,1763369431603,-500.0,0.00017999,2]
[394193526,1763369431613,-173.72595753,0.00017999,2]
[394193527,1763369431626,-326.27404247,0.00017999,2]
[394193528,1763369431639,-500.0,0.00017999,2]
[394193529,1763369431649,-500.0,0.00017999,2]
[394193530,1763369431658,-500.0,0.00017999,2]
[394193531,1763369431667,-500.0,0.00017999,2]
[394193532,1763369431677,-500.0,0.00017999,2]
[394193533,1763369431687,-500.0,0.00017999,2]
[394193534,1763369431697,-500.0,0.00017999,2]
[394193535,1763369431708,-500.0,0.00017999,2]
[394193536,1763369431720,-500.0,0.00017999,2]
[394193537,1763369431730,-500.0,0.00017999,2]
[394193538,1763369431741,-201.88013753,0.00017999,2]
[394193539,1763369431850,-307.96163317,0.00017999,2]
[394193540,1763369431859,-500.0,0.00017999,2]
[394193543,1763369431868,-500.0,0.00017999,2]
[394193544,1763369431878,-500.0,0.00017999,2]
[394193546,1763369431888,-500.0,0.00017999,2]
[394193547,1763369431897,-500.0,0.00017999,2]
[394193548,1763369431907,-500.0,0.00017999,2]
[394193549,1763369431917,-500.0,0.00017999,2]
[394193550,1763369431927,-500.0,0.00017999,2]
[394193551,1763369431936,-500.0,0.00017999,2]
[394193553,1763369431946,-500.0,0.00017999,2]
[394193554,1763369431955,-500.0,0.00017999,2]
[394193555,1763369431965,-500.0,0.00017999,2]
[394193556,1763369431975,-550.55902969,0.00017999,2]
[394193558,1763369431984,-499.99999999,0.00017999,2]
[394193560,1763369431993,-8822.474108,0.00018,2]
[394193565,1763369432071,-3876.80129642,0.00018,2]
[394193568,1763369437491,-168.48422035,0.000179,2]
[394193569,1763369437500,-1708034.60817944,0.00018,2]
[394193570,1763369437596,-2274.33594372,0.00018,2]
[394193571,1763369437608,-956.55901362,0.00018,2]
[394193572,1763369437649,-419.075,0.00018,2]
[394193573,1763369437703,-4469.34245051,0.00018,2]
[394193766,1763369439658,-1408.96817405,0.00018,2]
[394193771,1763369439694,-7683.44538826,0.00018,2]
[394194092,1763369442852,-1099.15951961,0.00018,2]
[394194121,1763369443128,-1581.58,0.00018,2]
[394194124,1763369443139,-559.1043013,0.00018,2]
[394194126,1763369443150,-4160.7923485,0.00018,2]
[394194137,1763369443242,-258.0558,0.00018,2]
[394194417,1763369445954,-655.9187631,0.00018,2]
[394194420,1763369446009,-53045.11791045,0.00018,2]
[394194746,1763369479378,-2000.0,0.000178,2]
[394194753,1763369492841,956.112,0.0001764,2]
[394194754,1763369492895,168.976,0.0001764,2]
[394194756,1763369503263,437.01826434,0.000179,2]
[394194757,1763369508494,157.97066371,0.000179,2]
[394194758,1763369532433,1439.65033101,0.000179,2]
[394194759,1763369539560,277.35679052,0.00017989,2]
[394194760,1763369543311,151.0,0.00017989,2]
[394194761,1763369546353,250.0,0.00017989,2]
[394194762,1763369546966,250.0,0.00017989,2]
[394194763,1763369547742,250.0,0.00017989,2]
[394194764,1763369548198,250.0,0.00017989,2]
[394194765,1763369548815,250.0,0.00017989,2]
[394194766,1763369549856,250.0,0.00017989,2]
[394194767,1763369550633,250.0,0.00017989,2]
[394194768,1763369550856,250.0,0.00017989,2]
[394194769,1763369551443,250.0,0.00017989,2]
[394194770,1763369552169,250.0,0.00017989,2]
[394194771,1763369552841,250.0,0.00017989,2]
[394194772,1763369595104,329.92,0.00017999,2]
[394194773,1763369709465,168.48422035,0.000179,2]
[394194775,1763369771901,478.6,0.00013699,2]
[394194776,1763369775500,157.97066371,0.000179,2]
[394194777,1763369830378,277.35679052,0.00017989,2]
[394194778,1763369838789,250.0,0.00017989,2]
[394194779,1763369839453,250.0,0.00017989,2]
[394194780,1763369840222,250.0,0.00017989,2]
[394194781,1763369840674,250.0,0.00017989,2]
[394194782,1763369841484,250.0,0.00017989,2]
[394194783,1763369842122,250.0,0.00017989,2]
[394194784,1763369842705,250.0,0.00017989,2]
[394194785,1763369843953,250.0,0.00017989,2]
[394194786,1763369844300,250.0,0.00017989,2]
[394194787,1763369844607,250.0,0.00017989,2]
[394194788,1763369845295,250.0,0.00017989,2]
[394194789,1763369920417,624.68227584,0.000179,2]
[394194790,1763369920441,671.00302206,0.000179,2]
[394194791,1763369971856,168.48422035,0.000179,2]
[394194792,1763369972172,1903.18,9.014e-05,2]
[394194793,1763369972308,1903.18,9.489e-05,2]
[394194794,1763369972368,1903.18,9.963e-05,2]
[394194795,1763369972492,1903.18,0.00010438,2]
[394194796,1763369972698,1547.80275759,0.00010912,2]
[394194797,1763369972720,355.37724241,0.00010912,2]
[394194798,1763369972899,1903.18,0.00011386,2]
[394194799,1763369973096,1903.18,0.00011861,2]
[394194800,1763369973336,1903.18,0.00012335,2]
[394194801,1763369973524,1903.18,0.0001281,2]
[394194802,1763369973775,1903.18,0.00013284,2]
[394194803,1763369973996,128.73275759,0.00013759,2]
[394194804,1763369974020,1774.44724241,0.00013759,2]
[394194805,1763369974440,1903.18,0.00014233,2]
[394194806,1763369974623,1903.18,0.00014708,2]
[394194807,1763369974822,1903.18,0.00015182,2]
[394194808,1763369975030,1903.18,0.00015656,2]
[394194809,1763369975238,612.84275759,0.00016131,2]
[394194810,1763369975262,1290.33724241,0.00016131,2]
[394194811,1763369975494,1903.18,0.00016605,2]
[394194812,1763369975746,1903.18,0.0001708,2]
[394194813,1763369975942,1903.18,0.00017554,2]
[394194819,1763370033048,-157.97066371,0.000179,2]
[394194820,1763370079130,-250.39988,0.0001786,2]
[394194821,1763370092948,168.976,0.0001764,2]
[394194822,1763370092978,764.89,0.0001764,2]
[394194823,1763370094366,-250.39988,0.0001787,2]
[394194824,1763370094393,-250.39988,0.0001787,2]
[394194825,1763370094420,-250.39988,0.0001787,2]
[394194827,1763370109896,-250.39988,0.0001788,2]
[394194828,1763370171855,-277.35679052,0.00017989,2]
[394194829,1763370171885,-250.0,0.00017989,2]
[394194830,1763370171912,-250.0,0.00017989,2]
[394194831,1763370171949,-250.0,0.00017989,2]
[394194832,1763370171982,-250.0,0.00017989,2]
[394194833,1763370172011,-250.0,0.00017989,2]
[394194834,1763370172039,-250.0,0.00017989,2]
[394194835,1763370172465,-250.0,0.00017989,2]
[394194836,1763370172495,-250.0,0.00017989,2]
[394194837,1763370172524,-250.0,0.00017989,2]
[394194838,1763370172557,-250.0,0.00017989,2]
[394194839,1763370172585,-250.0,0.00017989,2]
[394194840,1763370172613,-618.94371933,0.00017999,2]
[394194841,1763370172641,-500.0,0.00017999,2]
[394194842,1763370172668,-500.0,0.00017999,2]
[394194843,1763370172700,-92.15333811,0.00017999,2]
[394194844,1763370173238,-523.10230408,0.00017999,2]
[394194845,1763370173272,-500.0,0.00017999,2]
[394194846,1763370173303,-500.0,0.00017999,2]
[394194847,1763370309855,-168.48422035,0.000179,2]
[394194848,1763370309887,-157.97066371,0.000179,2]
[394194849,1763370309916,-410.66664411,0.000179,2]
[394194850,1763370319523,-3025.80364542,0.000179,2]
[394194851,1763370321914,-10000.01,0.000179,2]
[394194852,1763370322067,-10000.01,0.000179,2]
[394194853,1763370322612,-10000.01,0.000179,2]
[394194854,1763370326517,30000.0,0.00017,2]
[394194858,1763370331227,-4889.89582316,0.00017,2]
[394194859,1763370469687,-1064.5,0.00016438,2]
[394194860,1763370544373,2247.0,0.00016438,2]
[394194861,1763370546432,-166.66,0.00016754,2]
[394194862,1763370546460,-166.66,0.00017106,2]
[394194863,1763370546490,-166.66,0.00017459,2]
[394194864,1763370546519,-250.0,0.00017694,2]
[394194865,1763370546562,-166.66,0.00017812,2]
[394194866,1763370546593,-409.4208,0.0001782,2]
[394194867,1763370546623,-300.0,0.00017899,2]
[394194868,1763370547398,-4500.8884,0.000179,2]
[394194869,1763370548160,-10000.01,0.000179,2]
[394194870,1763370548252,-4574.38135458,0.000179,2]
[394194871,1763370548262,-1236.05544547,0.000179,2]
[394194872,1763370548273,-851.92205124,0.000179,2]
[394194873,1763370548283,-168.48422035,0.000179,2]
[394194874,1763370548294,-300.0,0.00017936,2]
[394194875,1763370548304,-500.0,0.00017973,2]
[394194876,1763370548314,-300.0,0.0001798,2]
[394194877,1763370548325,-277.35679052,0.00017989,2]
[394194878,1763370548334,-1256.2364736,0.00017995,2]
[394194879,1763370548345,-164.54481816,0.00017999,2]
[394194880,1763370548356,-371.02884608,0.00017999,2]
[394194881,1763370548395,-10000.01,0.00017999,2]
[394194882,1763370549390,-10000.01,0.00017999,2]
[394194883,1763370552609,-10000.01,0.00017999,2]
[394194884,1763370555553,-10000.01,0.00017999,2]
[394194901,1763370632239,-181.11382641,0.0001799,2]
[394194902,1763370632249,-300.0,0.00017998,2]
[394194903,1763370632259,-1075.0,0.00017998,2]
[394194904,1763370632269,-6447.40013926,0.00017999,2]
[394194905,1763370632279,-213.29300196,0.00017999,2]
[394194906,1763370632288,-263.94,0.00017999,2]
[394194907,1763370632297,-470.82570326,0.00017999,5]
[394194908,1763370632307,-200.0,0.00017999,2]
[394194909,1763370632316,-236.68720357,0.00017999,2]
[394194910,1763370632325,-500.0,0.00017999,2]
[394194911,1763370632334,-500.0,0.00017999,2]
[394194912,1763370632344,-500.0,0.00017999,2]
[394194913,1763370632354,-500.0,0.00017999,2]
[394194914,1763370632363,-500.0,0.00017999,2]
[394194915,1763370632372,-500.0,0.00017999,2]
[394194916,1763370632382,-586.60104594,0.00017999,2]
[394194917,1763370632391,-500.0,0.00017999,2]
[394194918,1763370632400,-500.0,0.00017999,2]
[394194919,1763370632410,-500.0,0.00017999,2]
[394194920,1763370632420,-500.0,0.00017999,2]
[394194921,1763370632429,-500.0,0.00017999,2]
[394194922,1763370632439,-500.0,0.00017999,2]
[394194923,1763370632449,-500.0,0.00017999,2]
[394194924,1763370632460,-500.0,0.00017999,2]
[394194925,1763370632470,-500.0,0.00017999,2]
[394194926,1763370632479,-236.09767637,0.00017999,2]
[394194927,1763370632489,-500.0,0.00017999,2]
[394194928,1763370632499,-500.0,0.00017999,2]
[394194929,1763370632508,-305.49926359,0.00017999,2]
[394194930,1763370632518,-500.0,0.00017999,2]
[394194931,1763370632527,-224.40018017,0.00017999,2]
[394194932,1763370632537,-423.33226436,0.00017999,2]
[394194933,1763370632547,-231.39378175,0.00017999,2]
[394194934,1763370632556,-242.05974148,0.00017999,2]
[394194935,1763370632565,-500.0,0.00017999,2]
[394194936,1763370632575,-500.0,0.00017999,2]
[394194937,1763370632585,-500.0,0.00017999,2]
[394194938,1763370632594,-210.0,0.00017999,2]
[394194939,1763370632604,-290.53772378,0.00017999,2]
[394194940,1763370632613,-196.39990074,0.00017999,2]
[394194941,1763370632623,-500.0,0.00017999,2]
[394194942,1763370632632,-500.0,0.00017999,2]
[394194943,1763370632642,-500.0,0.00017999,2]
[394194944,1763370632652,-500.0,0.00017999,2]
[394194945,1763370632661,-500.0,0.00017999,2]
[394194946,1763370632670,-500.0,0.00017999,2]
[394194947,1763370632679,-258.0,0.00017999,2]
[394194948,1763370632688,-270.0,0.00017999,2]
[394194949,1763370632697,-500.0,0.00017999,2]
[394194950,1763370632707,-550.0,0.00017999,2]
[394194951,1763370632716,-500.0,0.00017999,2]
[394194952,1763370632725,-500.0,0.00017999,2]
[394194953,1763370632734,-500.0,0.00017999,2]
[394194954,1763370632744,-500.0,0.00017999,2]
[394194955,1763370632753,-500.0,0.00017999,2]
[394194956,1763370632763,-500.0,0.00017999,2]
[394194957,1763370632772,-3066.96789028,0.00018,2]
[394194958,1763370632784,-2022.37734242,0.00018,2]
[394194959,1763370632820,-779.90312794,0.00018,2]
[394194960,1763370632832,-1231.20141571,0.00018,2]
[394194961,1763370632847,-142345.03594179,0.00018,2]
[394194962,1763370632858,-750.03203278,0.00018,2]
[394194963,1763370632869,-2623.40982985,0.00018,2]
[394194967,1763370637922,-1547048.51817389,0.00018,2]
[394194969,1763370637932,-330.81406872,0.00018,2]
[394194971,1763370637942,-608.310814,0.00018,2]
[394194973,1763370637952,-551.940163,0.00018,2]
[394194975,1763370637962,-1305.394089,0.00018,2]
[394194977,1763370637971,-106629.9370251,0.00018,2]
[394194979,1763370637980,-3616.0987481,0.00018,2]
[394194981,1763370637990,-24739.6271828,0.00018,2]
[394194983,1763370637999,-341.184,0.00018,2]
[394194985,1763370638008,-1903.18,0.00018029,2]
[394194987,1763370638018,-200.0,0.000181,2]
[394194989,1763370638027,-500.0,0.00018138,2]
[394194991,1763370638036,-10000.01,0.00018154,2]
[394194992,1763370638045,-166.66,0.00018165,2]
[394194994,1763370638055,-150.0,0.00018257,2]
[394194996,1763370638067,-263.94,0.00018273,2]
[394194998,1763370638077,-1175.27,0.00018328,2]
[394195000,1763370638086,-7530.0,0.00018381,2]
[394195002,1763370638096,-166.66,0.00018517,2]
[394195004,1763370638105,-263.94,0.00018547,2]
[394195006,1763370638117,-881.03894768,0.00018605,2]
[394195008,1763370638127,-150.0,0.00018765,2]
[394195010,1763370638137,-263.94,0.00018821,2]
[394195011,1763370638147,-150.0,0.0001884,2]
[394195013,1763370638156,-500.0,0.00018973,2]
[394195015,1763370638167,-300.0,0.00018999,2]
[394195017,1763370638177,-300.0,0.00018999,2]
[394195019,1763370638187,-172.07274561,0.00018999,2]
[394195021,1763370638196,-217.39430549,0.00019,2]
[394195023,1763370638212,-44908.2607278,0.00019,2]
[394195524,1763370643307,-1146.76626509,0.00019,2]
[394195526,1763370643318,-9569.0,0.00019,2]
[394196011,1763370790084,-2293.4909,0.000179,2]
[394196025,1763370924337,167.81671496,0.00016,2]
[394196026,1763371044075,-2000.0,0.000178,2]
[394196027,1763371136656,-238.15988678,0.00017631,2]
[394196042,1763371321821,-150.0,0.00017989,2]
[394196053,1763371445558,-181.00588477,0.00017278,2]
[394196054,1763371491739,-300.0,0.00018032,2]
[394196055,1763371491769,-1200.0,0.00018032,2]
[394196056,1763371491799,-210.87239285,0.00018033,2]
[394196057,1763371491829,-1458.187571,0.00018033,2]
[394196058,1763371491972,-3511.8900723,0.00018033,2]
[394196059,1763371492432,-150.0,0.00018033,2]
[394196060,1763371492644,-9700.01,0.00018033,2]
[394196061,1763371492659,-10000.01,0.00018033,2]
[394196062,1763371492694,-3161.7546998,0.00018033,2]
[394196063,1763371492703,-1289.04,0.00018534,2]
[394196064,1763371492713,-5549.2153002,0.00018536,2]
[394196065,1763371492726,-5750.1946998,0.00018536,2]
[394196066,1763371492735,-159.96,0.00018704,2]
[394196067,1763371492744,-4089.8553002,0.00018786,2]
[394196068,1763371492857,-10000.01,0.00018786,2]
[394196069,1763371493061,-10000.01,0.00018786,2]
[394196070,1763371493196,-992.82554899,0.00018786,2]
[394196071,1763371493225,-500.0,0.00018973,2]
[394196072,1763371493253,-211.15,0.00018988,2]
[394196073,1763371493286,-151.0,0.00018989,2]
[394196074,1763371493318,-151.0,0.00018989,2]
[394196075,1763371493347,-277.35679052,0.00018989,2]
[394196076,1763371493378,-1000.0,0.00018989,2]
[394196077,1763371493410,-1000.0,0.00018989,2]
[394196078,1763371493440,-433.34532098,0.00018989,2]
[394196079,1763371493585,-566.65467902,0.00018989,2]
[394196080,1763371493616,-1000.0,0.00018989,2]
[394196081,1763371493646,-1000.0,0.00018989,2]
[394196082,1763371493676,-1000.0,0.00018989,2]
[394196083,1763371493705,-1000.0,0.00018989,2]
[394196084,1763371494289,-1000.0,0.00018989,2]
[394196085,1763371494328,-1000.0,0.00018989,2]
[394196086,1763371494360,-250.0,0.00018989,2]
[394196087,1763371494390,-250.0,0.00018989,2]
[394196088,1763371494418,-310.93344637,0.00018989,2]
[394196089,1763371508023,900.0,0.00022,120]
[394196090,1763371508116,-300.0,0.00018999,2]
[394196091,1763371508147,-1200.0,0.00018999,2]
[394196092,1763371508531,4378.14310726,0.00018,2]
[394196093,1763371508558,10000.01,0.00018,2]
[394196094,1763371508585,10000.01,0.00018,2]
[394196095,1763371508611,10000.01,0.00018,2]
[394196096,1763371508636,10000.01,0.00018,2]
[394196097,1763371508661,10000.01,0.00018,2]
[394196098,1763371508686,10000.01,0.00018,2]
[394196099,1763371508713,10000.01,0.00018,2]
[394196100,1763371508738,10000.01,0.00018,2]
[394196101,1763371508764,10000.01,0.00018,2]
[394196102,1763371508790,10000.01,0.00018,2]
[394196103,1763371508815,10000.01,0.00018,2]
[394196104,1763371508846,10000.01,0.00018,2]
[394196105,1763371508874,10000.01,0.00018,2]
[394196106,1763371508899,10000.01,0.00018,2]
[394196107,1763371519797,-2621.86689274,0.00018,2]
[394196108,1763371519913,-10000.01,0.00018,2]
[394196109,1763371520036,-10000.01,0.00018,2]
[394196110,1763371520150,-10000.01,0.00018,2]
[394196111,1763371520226,-10000.01,0.00018,2]
[394196112,1763371520272,-10000.01,0.00018,2]
[394196113,1763371520395,-10000.01,0.00018,2]
[394196114,1763371520442,-10000.01,0.00018,2]
[394196115,1763371522718,-10000.01,0.00018,2]
[394196116,1763371522827,-10000.01,0.00018,2]
[394196117,1763371528954,-10000.01,0.00018,2]
[394196118,1763371529240,-10000.01,0.00018,2]
[394196119,1763371529287,-10000.01,0.00018,2]
[394196120,1763371529439,-10000.01,0.00018,2]
[394196121,1763371529578,-10000.01,0.00018,2]
[394196122,1763371529748,-10000.01,0.00018,2]
[394196123,1763371529845,-10000.01,0.00018,2]
[394196124,1763371529990,-10000.01,0.00018,2]
[394196125,1763371532006,-10000.01,0.00018,2]
[394196126,1763371532023,-10000.01,0.00018,2]
[394196127,1763371536825,-10000.01,0.00018,2]
[394196128,1763371536875,-10000.01,0.00018,2]
[394196129,1763371536895,-10000.01,0.00018,2]
[394196130,1763371536980,-10000.01,0.00018,2]
[394196131,1763371536997,-10000.01,0.00018,2]
[394196132,1763371537019,-10000.01,0.00018,2]
[394196133,1763371537067,-10000.01,0.00018,2]
[394196134,1763371537168,-10000.01,0.00018,2]
[394196135,1763371537790,-10000.01,0.00018,2]
[394196136,1763371537844,-10000.01,0.00018,2]
[394196137,1763371541876,-10000.01,0.00018,2]
[394196138,1763371542189,-10000.01,0.00018,2]
[394196139,1763371542287,-10000.01,0.00018,2]
[394196140,1763371543860,-10000.01,0.00018,2]
[394196141,1763371543990,-10000.01,0.00018,2]
[394196142,1763371549968,-10000.01,0.00018,2]
[394196143,1763371550084,-10000.01,0.00018,2]
[394196144,1763371550254,-10000.01,0.00018,2]
[394196145,1763371566503,250.0,0.00017,2]
[394196148,1763371583821,303.07046267,0.000167,2]
[394196149,1763371584257,-9446.93953733,0.000179,2]
[394196150,1763371584481,-4982.11696216,0.000179,2]
[394196152,1763371599459,-300.0,0.00017999,2]
[394196155,1763371611624,1447.48165658,0.0001793,2]
[394196156,1763371613382,7952.52834342,0.000162,5]
[394196157,1763371613406,10000.01,0.000162,5]
[394196158,1763371613430,10000.01,0.000162,5]
[394196159,1763371613453,10000.01,0.000162,5]
[394196160,1763371613476,10000.01,0.000162,5]
[394196161,1763371613500,10000.01,0.000162,5]
[394196162,1763371613523,10000.01,0.000162,5]
[394196163,1763371613547,10000.01,0.000162,5]
[394196164,1763371613569,10000.01,0.000162,5]
[394196165,1763371613593,720.17036149,0.000162,5]
[394196169,1763371651006,492.0,0.00022,30]
[394196170,1763371653634,300.0,0.000169,6]
[394196171,1763371655722,600.0,0.00017,6]
[394196172,1763371657846,900.0,0.000171,6]
[394196173,1763371659933,1200.0,0.000172,6]
[394196174,1763371661999,1600.0,0.000173,6]
[394196175,1763371664114,300.0,0.000174,6]
[394196177,1763371666206,300.0,0.000175,6]
[394196178,1763371668313,300.0,0.000176,6]
[394196179,1763371670401,300.0,0.000177,6]
[394196180,1763371672774,666.0,0.000178,6]
[394196181,1763371673538,1000.0,0.000179,2]
[394196182,1763371674028,417.80903705,0.0001793,2]
[394196183,1763371685957,1396.03060146,0.000179,2]
[394196184,1763371685980,4362.49539854,0.000179,2]
[394196187,1763371691589,300.0,0.00017999,2]
[394196188,1763371704475,321.97829668,0.00017912,2]
[394196189,1763371705921,500.09531084,0.00017912,2]
[394196195,1763371716732,4515.44099394,0.00015,3]
[394196196,1763371716756,10000.01,0.00015,3]
[394196198,1763371716781,10000.01,0.00015,3]
[394196199,1763371716806,10000.01,0.00015,3]
[394196200,1763371716829,10000.01,0.00015,3]
[394196201,1763371716852,10000.01,0.00015,3]
[394196202,1763371716874,10000.01,0.00015,3]
[394196203,1763371716897,10000.01,0.00015,3]
[394196204,1763371716919,10000.01,0.00015,3]
[394196205,1763371716944,10000.01,0.00015,3]
[394196206,1763371716975,268853.73556472,0.00015,3]
[394196207,1763371723174,-206.289813,0.00017912,3]
[394196208,1763371725197,9587.430374,0.00017912,2]
[394196209,1763371725218,8289.16068542,0.00017912,2]
[394196211,1763371735522,446.60278219,0.00017912,2]
[394196449,1763371784538,527.98,0.00017999,2]
[394196450,1763371799318,336.9684407,0.00017912,2]
[394196451,1763371801519,399.29809169,0.00017998,2]
[394196452,1763371801541,800.70190831,0.00017998,2]
[394196453,1763371816749,248.12519687,0.000179,2]
[394196454,1763371821780,1000.0,0.000179,2]
[394196455,1763371822092,173.39,0.00022,30]
[394196463,1763371831947,-500.0,0.00017999,2]
[394196464,1763371831958,-375.88927357,0.00017999,2]
[394196465,1763371831970,-131.19085255,0.00017999,2]
[394196466,1763371831979,-296.33258505,0.00017999,2]
[394196467,1763371831989,-500.0,0.00017999,2]
[394196468,1763371831999,-109.2765624,0.00017999,2]
[394196469,1763371832010,-390.7234376,0.00017999,2]
[394196470,1763371832019,-500.0,0.00017999,2]
[394196471,1763371832029,-200.75340577,0.00017999,2]
[394196472,1763371832038,-500.0,0.00017999,2]
[394196473,1763371832048,-287.70953484,0.00017999,2]
[394196474,1763371832058,-500.0,0.00017999,2]
[394196475,1763371832068,-609.78486306,0.00017999,2]
[394196476,1763371832077,-500.0,0.00017999,2]